lending/lending_fUSD_20240605
["ID","MTS","AMOUNT","RATE_DAILY","PERIOD"]
[328605187,1717602641098,-201.84275361,0.00028478,4]
[328605188,1717602641108,-182.55031037,0.00028478,4]
[328605189,1717602641120,-317.44968963,0.00028478,4]
[328605190,1717602641130,-522.17803048,0.00028478,4]
[328605191,1717602641140,-435.03269702,0.00028478,4]
[328605192,1717602641150,-500.0,0.00028478,4]
[328605193,1717602641160,-500.0,0.00028478,4]
[328605194,1717602641170,-500.0,0.00028478,4]
[328605195,1717602641180,-500.0,0.00028478,4]
[328605196,1717602641190,-500.0,0.00028478,4]
[328605197,1717602641199,-500.0,0.00028478,4]
[328605198,1717602641209,-500.0,0.00028478,4]
[328605199,1717602641221,-520.87474559,0.00028478,4]
[328605200,1717602641230,-1397.27,0.00028478,4]
[328605201,1717602641240,-500.0,0.00028478,4]
[328605202,1717602641250,-500.0,0.00028478,4]
[328605203,1717602641260,-500.0,0.00028478,4]
[328605204,1717602641270,-494.75026899,0.00028478,4]
[328605205,1717602641280,-500.0,0.00028478,4]
[328605206,1717602641290,-208.72817113,0.00028478,4]
[328605207,1717602641299,-500.0,0.00028478,4]
[328605208,1717602641309,-500.0,0.00028478,4]
[328605210,1717602641319,-500.0,0.00028478,4]
[328605212,1717602641329,-500.0,0.00028478,4]
[328605214,1717602641338,-500.0,0.00028478,4]
[328605216,1717602641347,-500.0,0.00028478,4]
[328605218,1717602641356,-500.0,0.00028478,4]
[328605220,1717602641366,-959.58,0.00028478,4]
[328605221,1717602641376,-469.53639716,0.00028478,4]
[328605222,1717602641399,-490.04360284,0.00028478,4]
[328605223,1717602641408,-792.01,0.00028478,4]
[328605224,1717602641418,-792.01,0.00028478,4]
[328605225,1717602641427,-146.39524388,0.00028478,4]
[328605226,1717602641442,-412.58285005,0.00028478,4]
[328605227,1717602641451,-1204.39,0.00028478,4]
[328605228,1717602641461,-17.92674995,0.00028478,4]
[328605229,1717602641478,-482.07325005,0.00028478,4]
[328605230,1717602641487,-527.55606466,0.00028478,4]
[328605232,1717602641497,-500.0,0.00028478,4]
[328605234,1717602641507,-500.0,0.00028478,4]
[328605236,1717602641516,-500.0,0.00028478,4]
[328605238,1717602641526,-500.0,0.00028478,4]
[328605240,1717602641535,-178.81598504,0.00028478,4]
[328605242,1717602641545,-324.92,0.00028478,4]
[328605244,1717602641555,-521.78,0.00028478,4]
[328605246,1717602641564,-500.0,0.00028478,4]
[328605248,1717602641573,-500.0,0.00028478,4]
[328605250,1717602641583,-500.0,0.00028478,4]
[328605252,1717602641592,-500.0,0.00028478,4]
[328605254,1717602641601,-500.0,0.00028478,4]
[328605256,1717602641610,-500.0,0.00028478,4]
[328605258,1717602641619,-500.0,0.00028478,4]
[328605260,1717602641628,-91.05470023,0.00028478,4]
[328605262,1717602641643,-408.94529977,0.00028478,4]
[328605264,1717602641652,-500.0,0.00028478,4]
[328605266,1717602641662,-500.0,0.00028478,4]
[328605269,1717602641677,-705.37970023,0.00028478,4]
[328605272,1717602641695,-1066.33029977,0.00028478,4]
[328605274,1717602641705,-509.91713304,0.00028478,4]
[328605276,1717602641716,-245.90256719,0.00028478,4]
[328605305,1717602642088,-175.65702329,0.00028329,2]
[328605306,1717602642098,-254.09743281,0.00028478,4]
[328605307,1717602642108,-655.21,0.00028478,4]
[328605308,1717602642118,-500.0,0.00028478,4]
[328605309,1717602642128,-655.21,0.00028478,4]
[328605310,1717602642137,-500.0,0.00028478,4]
[328605311,1717602642147,-500.0,0.00028478,4]
[328605312,1717602642156,-801.84,0.00028478,4]
[328605313,1717602642166,-500.0,0.00028478,4]
[328605314,1717602642176,-801.84,0.00028478,4]
[328605315,1717602642185,-500.0,0.00028478,4]
[328605316,1717602642194,-500.0,0.00028478,4]
[328605317,1717602642204,-500.0,0.00028478,4]
[328605318,1717602642213,-500.0,0.00028478,4]
[328605319,1717602642225,-500.0,0.00028478,4]
[328605320,1717602642235,-500.0,0.00028478,4]
[328605321,1717602642245,-500.0,0.00028478,4]
[328605322,1717602642254,-546.11100312,0.00028478,4]
[328605323,1717602642264,-514.48,0.00028478,4]
[328605325,1717602642273,-500.0,0.00028478,4]
[328605326,1717602642283,-500.0,0.00028478,4]
[328605327,1717602642292,-555.71728572,0.00028478,4]
[328605328,1717602642301,-500.0,0.00028478,4]
[328605329,1717602642310,-167.19158457,0.00028478,4]
[328605330,1717602642322,-332.80841543,0.00028478,4]
[328605331,1717602642331,-500.0,0.00028478,4]
[328605332,1717602642340,-500.0,0.00028478,4]
[328605333,1717602642350,-500.0,0.00028478,4]
[328605334,1717602642360,-590.94,0.00028478,4]
[328605335,1717602642368,-500.0,0.00028478,4]
[328605336,1717602642378,-590.94,0.00028478,4]
[328605337,1717602642387,-581.08018782,0.00028478,4]
[328605340,1717602642396,-370.044388,0.00028478,4]
[328605341,1717602642406,-500.0,0.00028478,4]
[328605344,1717602642415,-500.0,0.00028478,4]
[328605347,1717602642424,-712.31,0.00028478,4]
[328605350,1717602642433,-500.0,0.00028478,4]
[328605352,1717602642442,-712.31,0.00028478,4]
[328605353,1717602642451,-500.0,0.00028478,4]
[328605354,1717602642460,-500.0,0.00028478,4]
[328605355,1717602642471,-110.0783726,0.00028478,4]
[328605356,1717602642483,-389.9216274,0.00028478,4]
[328605357,1717602642493,-500.0,0.00028478,4]
[328605358,1717602642503,-500.0,0.00028478,4]
[328605359,1717602642512,-500.0,0.00028478,4]
[328605360,1717602642522,-500.0,0.00028478,4]
[328605361,1717602642531,-500.0,0.00028478,4]
[328605362,1717602642541,-500.0,0.00028478,4]
[328605364,1717602642550,-2284.97,0.00028478,4]
[328605366,1717602642560,-500.0,0.00028478,4]
[328605367,1717602642570,-517.78755012,0.00028478,4]
[328605368,1717602642579,-500.0,0.00028478,4]
[328605369,1717602642589,-321.22874367,0.00028478,4]
[328605370,1717602642598,-502.14188161,0.00028478,4]
[328605371,1717602642607,-500.0,0.00028478,4]
[328605372,1717602642616,-556.74619316,0.00028478,4]
[328605373,1717602642626,-500.0,0.00028478,4]
[328605374,1717602642636,-500.0,0.00028478,4]
[328605375,1717602642645,-500.0,0.00028478,4]
[328605376,1717602642655,-500.0,0.00028478,4]
[328605377,1717602642664,-500.0,0.00028478,4]
[328605378,1717602642674,-500.0,0.00028478,4]
[328605379,1717602642683,-500.0,0.00028478,4]
[328605380,1717602642692,-500.0,0.00028478,4]
[328605381,1717602642702,-500.0,0.00028478,4]
[328605382,1717602642713,-2317.44,0.00028478,4]
[328605383,1717602642724,-1847.87391826,0.00028478,4]
[328605384,1717602642788,-469.56608174,0.00028478,4]
[328605385,1717602642798,-500.0,0.00028478,4]
[328605386,1717602642807,-500.0,0.00028478,4]
[328605387,1717602642817,-3193.29,0.00028478,4]
[328605388,1717602642827,-625.55,0.00028478,4]
[328605389,1717602642836,-204.46930033,0.00028478,4]
[328605390,1717602642848,-421.08069967,0.00028478,4]
[328605391,1717602642858,-424.79930033,0.00028478,4]
[328605392,1717602642869,-536.44,0.00028478,4]
[328605393,1717602642903,-175.65702329,0.00028379,2]
[328605394,1717602642912,-796.64069967,0.00028478,4]
[328605395,1717602642922,-1757.88,0.00028478,4]
[328605396,1717602642931,-500.0,0.00028478,4]
[328605397,1717602642940,-500.0,0.00028478,4]
[328605398,1717602642949,-500.0,0.00028478,4]
[328605399,1717602642958,-502.83,0.00028478,4]
[328605400,1717602642969,-502.83,0.00028478,4]
[328605401,1717602642978,-500.0,0.00028478,4]
[328605402,1717602642987,-500.0,0.00028478,4]
[328605403,1717602642997,-500.0,0.00028478,4]
[328605404,1717602643006,-500.0,0.00028478,4]
[328605405,1717602643015,-500.0,0.00028478,4]
[328605406,1717602643023,-500.0,0.00028478,4]
[328605407,1717602643033,-516.28784981,0.00028478,4]
[328605408,1717602643042,-500.0,0.00028478,4]
[328605409,1717602643051,-500.0,0.00028478,4]
[328605410,1717602643060,-510.29146716,0.00028478,4]
[328605411,1717602643069,-212.578854,0.00028478,7]
[328605412,1717602643078,-523.52097478,0.00028478,4]
[328605413,1717602643087,-500.0,0.00028478,4]
[328605414,1717602643096,-1249.98,0.00028478,4]
[328605415,1717602643106,-500.0,0.00028478,4]
[328605416,1717602643115,-212.578854,0.00028478,7]
[328605417,1717602643124,-500.0,0.00028478,4]
[328605418,1717602643133,-500.0,0.00028478,4]
[328605419,1717602643142,-500.0,0.00028478,4]
[328605420,1717602643151,-517.06146966,0.00028478,4]
[328605421,1717602643160,-563.23581467,0.00028478,4]
[328605423,1717602643170,-500.0,0.00028478,4]
[328605425,1717602643179,-500.0,0.00028478,4]
[328605426,1717602643188,-500.0,0.00028478,4]
[328605428,1717602643197,-696.15,0.00028478,4]
[328605430,1717602643208,-7538.74,0.00028478,4]
[328605432,1717602643219,-4223.73699296,0.00028478,4]
[328605434,1717602643230,-473.26955168,0.00028478,4]
[328605436,1717602643242,-2841.73345536,0.00028478,4]
[328605438,1717602643251,-303.93320577,0.00028478,4]
[328605440,1717602643263,-196.06679423,0.00028478,4]
[328605442,1717602643271,-500.0,0.00028478,4]
[328605444,1717602643281,-500.0,0.00028478,4]
[328605446,1717602643289,-500.0,0.00028478,4]
[328605448,1717602643299,-1378.29,0.00028478,4]
[328605450,1717602643307,-500.0,0.00028478,4]
[328605452,1717602643316,-707.96,0.00028478,4]
[328605454,1717602643326,-500.0,0.00028478,4]
[328605456,1717602643335,-500.0,0.00028478,4]
[328605458,1717602643344,-707.96,0.00028478,4]
[328605460,1717602643353,-500.0,0.00028478,4]
[328605462,1717602643362,-500.0,0.00028478,4]
[328605464,1717602643372,-577.02,0.00028478,4]
[328605466,1717602643381,-577.02,0.00028478,4]
[328605468,1717602643391,-500.0,0.00028478,4]
[328605470,1717602643400,-500.0,0.00028478,4]
[328605473,1717602643409,-500.0,0.00028478,4]
[328605476,1717602643418,-500.0,0.00028478,4]
[328605479,1717602643427,-500.0,0.00028478,4]
[328605481,1717602643436,-518.69706592,0.00028478,4]
[328605483,1717602643445,-500.0,0.00028478,4]
[328605485,1717602643454,-516.29,0.00028478,4]
[328605487,1717602643463,-515.13317546,0.00028478,4]
[328605488,1717602643475,-500.0,0.00028478,4]
[328605490,1717602643485,-518.16542695,0.00028478,4]
[328605492,1717602643495,-500.0,0.00028478,4]
[328605494,1717602643504,-500.0,0.00028478,4]
[328605496,1717602643513,-229.70574411,0.00028478,4]
[328605498,1717602643522,-215.68221833,0.00028478,4]
[328605501,1717602643534,-284.31778167,0.00028478,4]
[328605503,1717602643543,-536.50597114,0.00028478,4]
[328605505,1717602643552,-282.57624719,0.00028478,4]
[328605508,1717602643573,-2502.98375281,0.00028478,4]
[328605510,1717602643582,-2785.56,0.00028478,4]
[328605512,1717602643591,-500.0,0.00028478,4]
[328605514,1717602643600,-494.56185622,0.00028478,4]
[328605526,1717602643710,-500.0,0.00028478,4]
[328605528,1717602643723,-500.0,0.00028478,4]
[328605530,1717602643731,-548.43268589,0.00028478,4]
[328605532,1717602643740,-1211.95,0.00028478,4]
[328605534,1717602643750,-1211.95,0.00028478,4]
[328605536,1717602643759,-500.0,0.00028478,4]
[328605538,1717602643769,-6096.13192299,0.00028479,13]
[328605541,1717602643783,-492.53543469,0.00028479,13]
[328605543,1717602643798,-22691.55063864,0.00028479,13]
[328605545,1717602643807,-546.22331911,0.00028479,4]
[328605547,1717602643818,-516.40023214,0.00028479,4]
[328605549,1717602643827,-500.0,0.00028479,4]
[328605551,1717602643836,-500.0,0.00028479,4]
[328605553,1717602643847,-500.0,0.00028479,4]
[328605555,1717602643856,-516.64268743,0.00028479,4]
[328605557,1717602643865,-500.0,0.00028479,4]
[328605559,1717602643874,-500.0,0.00028479,4]
[328605561,1717602643883,-500.0,0.00028479,4]
[328605563,1717602643892,-500.0,0.00028479,4]
[328605564,1717602643901,-500.0,0.00028479,4]
[328605566,1717602643911,-500.0,0.00028479,4]
[328605568,1717602643920,-500.0,0.00028479,4]
[328605570,1717602643929,-500.0,0.00028479,4]
[328605572,1717602643938,-500.0,0.00028479,4]
[328605574,1717602643947,-500.0,0.00028479,4]
[328605576,1717602643956,-500.0,0.00028479,4]
[328605578,1717602643968,-522.75047082,0.00028479,4]
[328605580,1717602643977,-513.86222649,0.00028479,4]
[328605582,1717602643986,-500.0,0.00028479,4]
[328605584,1717602643994,-519.49169898,0.00028479,4]
[328605586,1717602644003,-500.0,0.00028479,4]
[328605587,1717602644013,-500.0,0.00028479,4]
[328605589,1717602644022,-500.0,0.00028479,4]
[328605591,1717602644031,-500.0,0.00028479,4]
[328605593,1717602644040,-500.0,0.00028479,4]
[328605595,1717602644049,-523.05107596,0.00028479,4]
[328605597,1717602644058,-500.0,0.00028479,4]
[328605600,1717602644068,-514.06416168,0.00028479,4]
[328605601,1717602644077,-500.0,0.00028479,4]
[328605604,1717602644086,-500.0,0.00028479,4]
[328605606,1717602644096,-500.0,0.00028479,4]
[328605608,1717602644105,-521.74218731,0.00028479,4]
[328605609,1717602644113,-500.0,0.00028479,4]
[328605611,1717602644122,-500.0,0.00028479,4]
[328605613,1717602644131,-500.0,0.00028479,4]
[328605615,1717602644141,-516.32678159,0.00028479,4]
[328605617,1717602644151,-518.66173121,0.00028479,4]
[328605619,1717602644160,-500.0,0.00028479,4]
[328605621,1717602644169,-515.38342069,0.00028479,4]
[328605624,1717602644179,-500.0,0.00028479,4]
[328605626,1717602644188,-515.7588502,0.00028479,4]
[328605627,1717602644197,-500.0,0.00028479,4]
[328605630,1717602644206,-522.66595992,0.00028479,4]
[328605632,1717602644216,-500.0,0.00028479,4]
[328605633,1717602644226,-515.81318832,0.00028479,4]
[328605636,1717602644236,-500.0,0.00028479,4]
[328605637,1717602644245,-513.50112862,0.00028479,4]
[328605639,1717602644254,-500.0,0.00028479,4]
[328605641,1717602644263,-529.64717605,0.00028479,4]
[328605643,1717602644273,-500.0,0.00028479,4]
[328605645,1717602644282,-512.9782943,0.00028479,4]
[328605647,1717602644291,-500.0,0.00028479,4]
[328605649,1717602644300,-500.0,0.00028479,4]
[328605651,1717602644309,-500.0,0.00028479,4]
[328605653,1717602644318,-512.78656148,0.00028479,4]
[328605655,1717602644327,-500.0,0.00028479,4]
[328605657,1717602644336,-512.5638757,0.00028479,4]
[328605659,1717602644344,-118.84787017,0.00028479,4]
[328605663,1717602644440,-0.00439084,0.00028428,2]
[328605664,1717602644790,-175.65263245,0.00028428,2]
[328605665,1717602644800,-384.50090179,0.00028479,4]
[328605666,1717602644810,-500.0,0.00028479,4]
[328605667,1717602644820,-519.3129046,0.00028479,4]
[328605668,1717602644835,-500.0,0.00028479,4]
[328605669,1717602644843,-500.0,0.00028479,4]
[328605670,1717602644854,-500.0,0.00028479,4]
[328605671,1717602644864,-500.0,0.00028479,4]
[328605672,1717602644873,-528.56969984,0.00028479,4]
[328605673,1717602644882,-500.0,0.00028479,4]
[328605674,1717602644891,-525.23493302,0.00028479,4]
[328605675,1717602644906,-513.90617977,0.00028479,4]
[328605676,1717602644915,-500.0,0.00028479,4]
[328605677,1717602644924,-528.86269943,0.00028479,4]
[328605678,1717602644933,-500.0,0.00028479,4]
[328605679,1717602644942,-603.99300561,0.00028479,4]
[328605680,1717602644951,-500.0,0.00028479,4]
[328605681,1717602644960,-515.20355236,0.00028479,4]
[328605682,1717602644971,-500.0,0.00028479,4]
[328605683,1717602644980,-529.09722808,0.00028479,4]
[328605684,1717602644989,-500.0,0.00028479,4]
[328605685,1717602644998,-515.26883048,0.00028479,4]
[328605686,1717602645008,-512.01313948,0.00028479,4]
[328605687,1717602645017,-500.0,0.00028479,4]
[328605688,1717602645026,-502.40909373,0.00028479,4]
[328605689,1717602645035,-500.0,0.00028479,4]
[328605690,1717602645044,-515.61660183,0.00028479,4]
[328605691,1717602645053,-500.0,0.00028479,4]
[328605692,1717602645062,-500.0,0.00028479,4]
[328605693,1717602645071,-446.92278448,0.00028479,4]
[328605694,1717602645081,-500.0,0.00028479,4]
[328605695,1717602645090,-500.0,0.00028479,4]
[328605696,1717602645099,-500.0,0.00028479,4]
[328605697,1717602645108,-529.18244513,0.00028479,4]
[328605698,1717602645117,-500.0,0.00028479,4]
[328605699,1717602645126,-527.95929133,0.00028479,4]
[328605700,1717602645135,-509.94211548,0.00028479,4]
[328605701,1717602645145,-517.50037393,0.00028479,4]
[328605702,1717602645154,-500.0,0.00028479,4]
[328605703,1717602645164,-548.52785399,0.00028479,4]
[328605704,1717602645173,-514.54735289,0.00028479,4]
[328605705,1717602645182,-506.22209232,0.00028479,4]
[328605706,1717602645191,-500.0,0.00028479,4]
[328605707,1717602645200,-500.0,0.00028479,4]
[328605708,1717602645209,-500.0,0.00028479,4]
[328605709,1717602645222,-520.64912888,0.00028479,4]
[328605710,1717602645231,-508.86733941,0.00028479,4]
[328605711,1717602645240,-263.56632536,0.00028479,4]
[328605712,1717602645251,-500.0,0.00028479,4]
[328605713,1717602645260,-524.9423404,0.00028479,4]
[328605714,1717602645269,-516.93107086,0.00028479,4]
[328605715,1717602645278,-500.0,0.00028479,4]
[328605716,1717602645287,-500.0,0.00028479,4]
[328605717,1717602645296,-500.0,0.00028479,4]
[328605718,1717602645306,-516.14685003,0.00028479,4]
[328605720,1717602645397,-635.47980324,0.00028479,4]
[328605721,1717602645417,-500.0,0.00028479,4]
[328605722,1717602645426,-195.68646829,0.00028479,4]
[328605723,1717602645435,-515.74440082,0.00028479,4]
[328605724,1717602645444,-472.90838829,0.00028479,4]
[328605726,1717602645616,-353.96696625,0.00028328,10]
[328605727,1717602645626,-149.29175223,0.00028378,2]
[328605728,1717602645651,-716.32456,0.00028378,2]
[328605729,1717602645741,-0.10774337,0.00028378,2]
[328605730,1717602645910,-1785.11412704,0.00028378,2]
[328605731,1717602645920,-175.65702329,0.00028478,2]
[328605732,1717602645930,-27.09161171,0.00028479,4]
[328605733,1717602645939,-527.10423199,0.00028479,4]
[328605734,1717602645949,-500.0,0.00028479,4]
[328605735,1717602645959,-606.46326738,0.00028479,4]
[328605737,1717602645971,-500.0,0.00028479,4]
[328605739,1717602645980,-510.34427248,0.00028479,4]
[328605741,1717602645990,-500.0,0.00028479,4]
[328605743,1717602646000,-500.0,0.00028479,4]
[328605745,1717602646010,-506.680598,0.00028479,4]
[328605747,1717602646020,-500.0,0.00028479,4]
[328605750,1717602646029,-524.78780588,0.00028479,4]
[328605752,1717602646039,-500.0,0.00028479,4]
[328605754,1717602646048,-500.0,0.00028479,4]
[328605756,1717602646057,-516.12633548,0.00028479,4]
[328605758,1717602646066,-500.0,0.00028479,4]
[328605759,1717602646075,-524.35736012,0.00028479,4]
[328605760,1717602646085,-500.0,0.00028479,4]
[328605761,1717602646094,-500.0,0.00028479,4]
[328605762,1717602646103,-500.0,0.00028479,4]
[328605763,1717602646112,-500.0,0.00028479,4]
[328605764,1717602646121,-527.93076256,0.00028479,4]
[328605765,1717602646130,-525.87752841,0.00028479,4]
[328605766,1717602646139,-506.14642718,0.00028479,4]
[328605767,1717602646149,-515.81336772,0.00028479,4]
[328605768,1717602646158,-500.0,0.00028479,4]
[328605769,1717602646167,-412.53729893,0.00028479,4]
[328605770,1717602646176,-189.21255181,0.00028479,4]
[328605771,1717602646185,-517.13075406,0.00028479,4]
[328605772,1717602646195,-500.0,0.00028479,4]
[328605773,1717602646204,-489.19292351,0.00028479,4]
[328605774,1717602646213,-500.0,0.00028479,4]
[328605775,1717602646225,-500.0,0.00028479,4]
[328605776,1717602646233,-500.0,0.00028479,4]
[328605777,1717602646243,-518.33089774,0.00028479,4]
[328605778,1717602646252,-508.12665855,0.00028479,4]
[328605779,1717602646261,-500.0,0.00028479,4]
[328605780,1717602646270,-507.53774534,0.00028479,4]
[328605781,1717602646279,-524.86032568,0.00028479,4]
[328605782,1717602646288,-513.22277623,0.00028479,4]
[328605783,1717602646297,-179.02500262,0.00028479,4]
[328605784,1717602646306,-500.0,0.00028479,4]
[328605785,1717602646315,-512.95832174,0.00028479,4]
[328605786,1717602646324,-508.14605852,0.00028479,4]
[328605787,1717602646334,-254.30014537,0.00028479,4]
[328605788,1717602646343,-508.46324171,0.00028479,4]
[328605789,1717602646352,-537.95827351,0.00028479,4]
[328605790,1717602646361,-533.33532123,0.00028479,4]
[328605791,1717602646370,-500.0,0.00028479,4]
[328605792,1717602646379,-519.29434585,0.00028479,4]
[328605793,1717602646388,-502.58455282,0.00028479,4]
[328605794,1717602646398,-500.0,0.00028479,4]
[328605795,1717602646407,-516.34649437,0.00028479,4]
[328605796,1717602646416,-500.0,0.00028479,4]
[328605797,1717602646425,-472.03459052,0.00028479,4]
[328605798,1717602646435,-512.67083468,0.00028479,4]
[328605799,1717602646444,-509.00691398,0.00028479,4]
[328605800,1717602646453,-500.0,0.00028479,4]
[328605801,1717602646463,-500.0,0.00028479,4]
[328605802,1717602646475,-500.0,0.00028479,4]
[328605803,1717602646484,-526.67151201,0.00028479,4]
[328605804,1717602646494,-500.0,0.00028479,4]
[328605805,1717602646503,-512.84626318,0.00028479,4]
[328605806,1717602646513,-500.0,0.00028479,4]
[328605807,1717602646522,-542.67978379,0.00028479,4]
[328605808,1717602646531,-500.0,0.00028479,4]
[328605809,1717602646540,-500.0,0.00028479,4]
[328605810,1717602646549,-504.4370334,0.00028479,4]
[328605811,1717602646559,-500.0,0.00028479,4]
[328605812,1717602646568,-332.71168644,0.00028479,4]
[328605813,1717602646579,-500.0,0.00028479,4]
[328605814,1717602646588,-500.0,0.00028479,4]
[328605815,1717602646597,-500.0,0.00028479,4]
[328605816,1717602646607,-500.0,0.00028479,4]
[328605817,1717602646616,-505.29195759,0.00028479,4]
[328605818,1717602646626,-500.0,0.00028479,4]
[328605819,1717602646635,-531.58200958,0.00028479,4]
[328605820,1717602646645,-500.0,0.00028479,4]
[328605821,1717602646654,-533.47536883,0.00028479,4]
[328605822,1717602646664,-500.0,0.00028479,4]
[328605823,1717602646674,-500.0,0.00028479,4]
[328605824,1717602646684,-520.37566462,0.00028479,4]
[328605825,1717602646694,-500.0,0.00028479,4]
[328605826,1717602646704,-500.0,0.00028479,4]
[328605827,1717602646713,-500.0,0.00028479,4]
[328605828,1717602646725,-517.18141574,0.00028479,4]
[328605829,1717602646735,-236.03426204,0.00028479,4]
[328605830,1717602646766,-263.96573796,0.00028479,4]
[328605831,1717602646780,-500.0,0.00028479,4]
[328605832,1717602646789,-500.0,0.00028479,4]
[328605833,1717602646800,-421.23056778,0.00028479,4]
[328605834,1717602646810,-64.06249426,0.00028479,4]
[328605835,1717602646822,-435.93750574,0.00028479,4]
[328605836,1717602646831,-482.89467386,0.00028479,4]
[328605837,1717602646843,-54.90548367,0.00028479,4]
[328605838,1717602646855,-500.0,0.00028479,4]
[328605839,1717602646866,-592.22,0.00028479,4]
[328605840,1717602646876,-515.06050838,0.00028479,4]
[328605841,1717602646886,-592.22,0.00028479,4]
[328605842,1717602646896,-500.0,0.00028479,4]
[328605843,1717602646905,-547.24100234,0.00028479,4]
[328605844,1717602646914,-500.0,0.00028479,4]
[328605845,1717602646924,-510.74724049,0.00028479,4]
[328605846,1717602646933,-500.0,0.00028479,4]
[328605847,1717602646942,-500.0,0.00028479,4]
[328605848,1717602646952,-500.0,0.00028479,4]
[328605849,1717602646961,-500.0,0.00028479,4]
[328605850,1717602646975,-527.23714727,0.00028479,4]
[328605851,1717602647077,-500.0,0.00028479,4]
[328605852,1717602647088,-500.0,0.00028479,4]
[328605853,1717602647097,-500.0,0.00028479,4]
[328605854,1717602647106,-500.0,0.00028479,4]
[328605855,1717602647116,-500.0,0.00028479,4]
[328605856,1717602647125,-515.18490149,0.00028479,4]
[328605857,1717602647135,-353.24895808,0.00028479,4]
[328605858,1717602647204,-155.32139059,0.00028479,4]
[328605859,1717602647213,-500.0,0.00028479,4]
[328605860,1717602647225,-500.0,0.00028479,4]
[328605861,1717602647234,-500.0,0.00028479,4]
[328605862,1717602647243,-147.76446232,0.00028479,4]
[328605863,1717602647254,-352.23553768,0.00028479,4]
[328605864,1717602647264,-372.69064646,0.00028479,4]
[328605865,1717602647273,-513.12543796,0.00028479,4]
[328605866,1717602647282,-500.0,0.00028479,4]
[328605867,1717602647292,-519.61589744,0.00028479,4]
[328605868,1717602647303,-500.0,0.00028479,4]
[328605869,1717602647312,-500.0,0.00028479,4]
[328605870,1717602647321,-500.0,0.00028479,4]
[328605871,1717602647331,-531.72452893,0.00028479,4]
[328605872,1717602647340,-362.97173358,0.00028479,4]
[328605873,1717602647349,-500.0,0.00028479,4]
[328605874,1717602647358,-517.03609202,0.00028479,4]
[328605875,1717602647367,-500.0,0.00028479,4]
[328605876,1717602647377,-500.0,0.00028479,4]
[328605877,1717602647386,-532.49074736,0.00028479,4]
[328605878,1717602647396,-511.05381684,0.00028479,4]
[328605879,1717602647406,-500.0,0.00028479,4]
[328605880,1717602647416,-531.29514075,0.00028479,4]
[328605881,1717602647427,-500.0,0.00028479,4]
[328605882,1717602647436,-500.0,0.00028479,4]
[328605883,1717602647444,-500.0,0.00028479,4]
[328605884,1717602647454,-500.0,0.00028479,4]
[328605885,1717602647464,-500.0,0.00028479,4]
[328605886,1717602647477,-500.0,0.00028479,4]
[328605887,1717602647486,-518.76073634,0.00028479,4]
[328605888,1717602647496,-262.00132748,0.00028479,4]
[328605889,1717602647506,-500.0,0.00028479,4]
[328605890,1717602647515,-500.0,0.00028479,4]
[328605891,1717602647525,-500.0,0.00028479,4]
[328605892,1717602647534,-522.93577919,0.00028479,4]
[328605893,1717602647544,-500.0,0.00028479,4]
[328605894,1717602647554,-510.47638533,0.00028479,4]
[328605895,1717602647564,-500.0,0.00028479,4]
[328605896,1717602647573,-460.48719689,0.00028479,4]
[328605897,1717602647582,-363.7815997,0.00028479,4]
[328605898,1717602647592,-513.37403328,0.00028479,4]